fUSD/lending_fUSD_20260224
["ID","MTS","AMOUNT","RATE_DAILY","PERIOD"]
[406544391,1771929040959,-3292.0,0.00013959,2]
[406544392,1771929040968,-215.42973367,0.00013995,2]
[406544393,1771929040978,-150.0,0.00014068,2]
[406544394,1771929040987,-150.0,0.00014095,2]
[406544395,1771929040998,-871.93707751,0.00014168,2]
[406544396,1771929041007,-1000.0,0.00014168,2]
[406544397,1771929041019,-1500.0,0.00014168,2]
[406544398,1771929041028,-166.66,0.00014298,2]
[406544399,1771929041039,-10357.55636516,0.0001439,2]
[406544400,1771929041048,-4511.31082936,0.00014628,2]
[406544401,1771929041057,-166.66,0.00014715,2]
[406544402,1771929041066,-2000.0,0.00014716,2]
[406544403,1771929041077,-173.87087054,0.00014961,2]
[406544404,1771929041086,-160.0,0.00014961,2]
[406544405,1771929041096,-500.0,0.00014983,4]
[406544406,1771929041105,-250.0,0.00015,2]
[406544407,1771929041115,-10016.0,0.00015,2]
[406544408,1771929041124,-2057.23131483,0.00015,2]
[406544409,1771929041133,-18027.12324089,0.00015,7]
[406544410,1771929041142,-8008.97204016,0.00015,2]
[406544411,1771929041152,-900.0,0.00015068,2]
[406544412,1771929041161,-1000.0,0.00015089,2]
[406544413,1771929041170,-240439.56128328,0.0001512,2]
[406544414,1771929041179,-527.0,0.00015238,2]
[406544415,1771929041188,-2500.0,0.00015264,2]
[406544416,1771929041197,-1517.64,0.000153,2]
[406544417,1771929041207,-1335.0,0.00015355,2]
[406544418,1771929041217,-510.0565306,0.000154,2]
[406544419,1771929041226,-4542.64996616,0.00015435,2]
[406544420,1771929041235,-4511.31082936,0.00015446,2]
[406544421,1771929041244,-2247.75609779,0.00015807,2]
[406544422,1771929041253,-3000.0,0.00015812,2]
[406544423,1771929041262,-358.06,0.00015947,2]
[406544424,1771929041271,-419.22118993,0.00016,2]
[406544425,1771929041280,-380.32235674,0.00016,2]
[406544426,1771929041288,-304.17499608,0.00016092,2]
[406544427,1771929041298,-380.32235674,0.000161,2]
[406544428,1771929041308,-117471.65877492,0.000162,5]
[406544429,1771929041317,-380.32235674,0.000162,2]
[406544430,1771929041326,-150.0,0.00016236,2]
[406544431,1771929041335,-4511.31082936,0.00016264,2]
[406544432,1771929041345,-474.12,0.00016293,2]
[406544433,1771929041355,-200.0,0.0001634,2]
[406544434,1771929041364,-3500.0,0.0001636,2]
[406544435,1771929041374,-900.0,0.00016438,2]
[406544436,1771929041385,-243.81571397,0.00016477,2]
[406544437,1771929041394,-474.12,0.00016567,2]
[406544438,1771929041404,-1000.0,0.00016598,2]
[406544439,1771929041413,-15000.0,0.000166,2]
[406544440,1771929041422,-361.85708907,0.000166,2]
[406544441,1771929041432,-358.06984512,0.00016744,2]
[406544442,1771929041442,-500.0,0.00016753,2]
[406544443,1771929041451,-607.84,0.00016841,2]
[406544444,1771929041460,-150.0,0.00016877,2]
[406544445,1771929041469,-620.70979822,0.00016908,2]
[406544446,1771929041480,-300.0,0.00017,2]
[406544447,1771929041490,-405976.30869257,0.00017,2]
[406544448,1771929041502,-4511.31082936,0.00017082,2]
[406544449,1771929041512,-1039.37,0.000175,4]
[406544450,1771929041522,-500.0,0.000175,3]
[406544451,1771929041531,-500.0,0.000175,5]
[406544452,1771929041541,-1378.216862,0.00017632,7]
[406544453,1771929041550,-895.0,0.00017808,2]
[406544454,1771929041560,-800.0,0.00017808,2]
[406544455,1771929041569,-500.0,0.00017898,2]
[406544456,1771929041579,-500.0,0.00017899,2]
[406544457,1771929041588,-500.0,0.00017899,2]
[406544458,1771929041598,-500.0,0.00017899,2]
[406544459,1771929041607,-500.0,0.00017899,2]
[406544460,1771929041616,-500.0,0.00017899,2]
[406544461,1771929041626,-500.0,0.00017899,2]
[406544462,1771929041635,-500.0,0.00017899,2]
[406544463,1771929041644,-500.0,0.00017899,2]
[406544464,1771929041654,-500.0,0.00017899,2]
[406544465,1771929041663,-500.0,0.00017899,2]
[406544466,1771929041672,-500.0,0.00017899,2]
[406544467,1771929041681,-635.23544103,0.00017899,2]
[406544468,1771929041690,-500.0,0.00017899,2]
[406544469,1771929041699,-500.0,0.00017899,2]
[406544470,1771929041708,-316.6988027,0.00017899,2]
[406544471,1771929041717,-4511.31082936,0.000179,2]
[406544472,1771929041728,-895.0,0.00017918,2]
[406544473,1771929041738,-541.0,0.00017939,2]
[406544474,1771929041747,-895.0,0.00017993,2]
[406544475,1771929041756,-2144683.3408517,0.00018,2]
[406544476,1771929041781,-685.54855793,0.00018,2]
[406544477,1771929041792,-1401.9124575,0.00018,2]
[406544478,1771929041803,-1000.18778537,0.00018,2]
[406544479,1771929041814,-865.69,0.00018,2]
[406544480,1771929041825,-7243.67967299,0.00018,2]
[406544481,1771929041837,-671.07308538,0.00018,2]
[406544482,1771929041861,-896.40182499,0.00018,2]
[406544483,1771929041909,561.32303947,0.00010487,2]
[406544484,1771929041942,561.32303947,0.00010487,2]
[406544485,1771929041987,561.32303947,0.00010487,2]
[406544486,1771929042026,561.32303947,0.00010487,2]
[406544487,1771929042058,561.32303947,0.00010487,2]
[406544488,1771929042091,561.32303947,0.00010487,2]
[406544489,1771929042136,561.32303947,0.00010487,2]
[406544490,1771929042169,561.32303947,0.00010487,2]
[406544491,1771929042201,561.32303947,0.00010487,2]
[406544492,1771929042248,561.32303947,0.00010487,2]
[406544495,1771929042333,561.32303947,0.00010487,2]
[406544496,1771929042402,561.32303947,0.00010487,2]
[406544497,1771929042433,302.263929,0.00010487,2]
[406544498,1771929042457,259.05911047,0.00010487,2]
[406544499,1771929042489,561.32303947,0.00010487,2]
[406544500,1771929042520,561.32303947,0.00010487,2]
[406544501,1771929042573,561.32303947,0.00010487,2]
[406544504,1771929042804,561.32303947,0.00010487,2]
[406544505,1771929042834,561.32303947,0.00010487,2]
[406544506,1771929042868,561.32303947,0.00010487,2]
[406544507,1771929042901,561.32303947,0.00010487,2]
[406544508,1771929042933,561.32303947,0.00010487,2]
[406544509,1771929042970,561.32303947,0.00010487,2]
[406544510,1771929043006,561.32303947,0.00010487,2]
[406544511,1771929043037,561.32303947,0.00010487,2]
[406544512,1771929043073,561.32303947,0.00010487,2]
[406544513,1771929043104,561.32303947,0.00010487,2]
[406544515,1771929043137,561.32303947,0.00010487,2]
[406544516,1771929043172,561.32303947,0.00010487,2]
[406544517,1771929043220,561.32303947,0.00010487,2]
[406544518,1771929043252,561.32303947,0.00010487,2]
[406544519,1771929043282,561.32303947,0.00010487,2]
[406544520,1771929043327,561.32303947,0.00010487,2]
[406544521,1771929043365,509.42568424,0.00010487,2]
[406544522,1771929043390,51.89735523,0.00010487,2]
[406544523,1771929043426,561.32303947,0.00010487,2]
[406544524,1771929043462,561.32303947,0.00010487,2]
[406544525,1771929043494,561.32303947,0.00010487,2]
[406544526,1771929043525,561.32303947,0.00010487,2]
[406544533,1771929044500,-5256.5055644,0.00011223,2]
[406544534,1771929044509,-10889.85743814,0.00018,2]
[406544538,1771929048463,10000.01,0.00010488,2]
[406544539,1771929048488,10000.01,0.00010488,2]
[406544540,1771929048510,10000.01,0.00010488,2]
[406544541,1771929048532,10000.01,0.00010488,2]
[406544542,1771929048554,10000.01,0.00010488,2]
[406544543,1771929048577,10000.01,0.00010488,2]
[406544544,1771929048600,10000.01,0.00010488,2]
[406544545,1771929048621,5000.01,0.00010488,2]
[406544546,1771929053625,-987.42884592,0.00010488,2]
[406544547,1771929053692,-10000.01,0.00010488,2]
[406544548,1771929053775,-10000.01,0.00010488,2]
[406544550,1771929054134,-10000.01,0.00010488,2]
[406544551,1771929054468,-10000.01,0.00010488,2]
[406544552,1771929054511,-10000.01,0.00010488,2]
[406544553,1771929054568,-10000.01,0.00010488,2]
[406544554,1771929054673,-10000.01,0.00010488,2]
[406544555,1771929054785,-10000.01,0.00010488,2]
[406544557,1771929086232,155.30348919,0.00010487,2]
[406544558,1771929088291,9653.50799048,0.00010388,2]
[406544559,1771929092728,191.19852033,0.00010279,2]
[406544560,1771929092749,1476.58347967,0.00010279,2]
[406544561,1771929092873,183.076,0.00010279,2]
[406544562,1771929095283,289.56964534,0.00010487,2]
[406544563,1771929108085,561.32303937,0.00010487,2]
[406544564,1771929121316,300.0,0.00010487,2]
[406544565,1771929145147,1289.69723906,0.00010388,2]
[406544566,1771929150490,5562.09619091,0.00010388,2]
[406544571,1771929182212,150.0,0.00010487,2]
[406544572,1771929187858,187.66440565,0.00010388,2]
[406544573,1771929187879,6343.70193774,0.00010388,2]
[406544574,1771929201151,300.0,0.00010487,2]
[406544575,1771929215506,325.24707442,0.00010388,2]
[406544576,1771929241411,300.0,0.00010487,2]
[406544577,1771929273006,290.35343298,0.00010388,2]
[406544578,1771929275636,859.79815938,0.00010388,2]
[406544579,1771929301634,1200.0,0.00010487,2]
[406544580,1771929308325,380.90939548,0.00010388,2]
[406544581,1771929308346,3973.33483344,0.00010388,2]
[406544582,1771929330158,6026.67516656,0.00010388,2]
[406544583,1771929330179,10000.01,0.00010388,2]
[406544584,1771929330199,10000.01,0.00010388,2]
[406544585,1771929330219,4426.69803344,0.00010388,2]
[406544586,1771929336183,174.31,0.0001046,2]
[406544587,1771929343409,5399.00196656,0.00010388,2]
[406544588,1771929343432,10000.01,0.00010388,2]
[406544589,1771929343454,10000.01,0.00010388,2]
[406544590,1771929343475,10000.01,0.00010388,2]
[406544591,1771929343498,5000.01,0.00010388,2]
[406544592,1771929343520,10000.01,0.00010388,2]
[406544593,1771929343542,10000.01,0.00010388,2]
[406544594,1771929343563,10000.01,0.00010388,2]
[406544595,1771929343585,10000.01,0.00010388,2]
[406544596,1771929343607,10000.01,0.00010388,2]
[406544597,1771929343633,1934.31573574,0.00010388,2]
[406544598,1771929343658,2139.15347552,0.00010388,2]
[406544599,1771929343683,722.8955016,0.00010388,2]
[406544600,1771929345989,216.83138294,0.00010388,2]
[406544601,1771929348796,-5000.01,0.00010388,2]
[406544602,1771929362163,150.0,0.00010387,2]
[406544603,1771929405836,573.19877292,0.00010288,2]
[406544604,1771929427667,5138.532192,7.945e-05,2]
[406544605,1771929428520,2902.82948596,0.00010288,2]
[406544606,1771929428993,1018.61816618,0.00010268,2]
[406544607,1771929429019,3334.15183382,0.00010268,2]
[406544611,1771929450479,4286.4,0.00010316,2]
[406544612,1771929455208,175.94146694,0.00010387,2]
[406544613,1771929455240,202.69875174,0.00010387,2]
[406544614,1771929456397,500.0,0.00010387,2]
[406544615,1771929456432,500.0,0.00010387,2]
[406544616,1771929456471,500.0,0.00010387,2]
[406544617,1771929456522,500.0,0.00010387,2]
[406544618,1771929456556,0.8179475,0.00010387,2]
[406544619,1771929456578,499.1820525,0.00010387,2]
[406544620,1771929456628,500.0,0.00010387,2]
[406544621,1771929456675,500.0,0.00010387,2]
[406544622,1771929456708,500.0,0.00010387,2]
[406544623,1771929456760,500.0,0.00010387,2]
[406544624,1771929456802,562.28882628,0.00010387,2]
[406544625,1771929456845,500.0,0.00010387,2]
[406544626,1771929456889,500.0,0.00010387,2]
[406544627,1771929476306,216.83138294,0.00010288,2]
[406544628,1771929488169,2110.779656,7.945e-05,2]
[406544629,1771929512397,558.2,7.9e-05,2]
[406544630,1771929520016,645.24565442,0.00010288,2]
[406544631,1771929536093,382.13251528,0.00010288,2]
[406544632,1771929542052,150.0,0.00010387,2]
[406544633,1771929548678,1875.34991258,0.00010288,2]
[406544634,1771929548703,59.86974472,0.00010288,2]
[406544635,1771929569379,500.0,0.00010387,2]
[406544636,1771929569423,173.58764736,0.00010387,2]
[406544638,1771929596608,216.83138294,0.00010288,2]
[406544639,1771929601288,1200.0,0.00010387,2]
[406544642,1771929639770,663.84,0.00010378,2]
[406544643,1771929666427,254.75501018,0.00010288,2]
[406544644,1771929668891,1290.1464382,0.00010288,2]
[406544645,1771929688836,200.0,0.00010227,2]
[406544646,1771929692694,1334.226,0.00010181,2]
[406544647,1771929692859,183.076,0.00010181,2]
[406544648,1771929702108,1227.65,0.00010224,2]
[406544649,1771929722074,150.0,0.00010387,2]
[406544653,1771929725235,2546.0277766,0.00010356,2]
[406544654,1771929725256,59.9722234,0.00010356,2]
[406544655,1771929732458,151.0,0.00010388,2]
[406544656,1771929733084,151.0,0.00010388,2]
[406544657,1771929733732,151.0,0.00010388,2]
[406544658,1771929734405,151.0,0.00010388,2]
[406544659,1771929735048,151.0,0.00010388,2]
[406544660,1771929735741,151.0,0.00010388,2]
[406544661,1771929736703,151.0,0.00010388,2]
[406544662,1771929737243,151.0,0.00010388,2]
[406544663,1771929737769,-1000.0,0.00010388,2]
[406544664,1771929737803,-3000.01,0.00010388,2]
[406544665,1771929737868,151.0,0.00010388,2]
[406544666,1771929738511,151.0,0.00010388,2]
[406544667,1771929739113,151.0,0.00010388,2]
[406544668,1771929740733,151.0,0.00010388,2]
[406544669,1771929743250,151.0,0.00010388,2]
[406544670,1771929743871,151.0,0.00010388,2]
[406544671,1771929743897,-5000.01,0.00010388,2]
[406544672,1771929744541,275.2704529,0.00010388,2]
[406544673,1771929746701,-5000.01,0.00010388,2]
[406544674,1771929749609,-5000.01,0.00010388,2]
[406544676,1771929751393,2799.6,7.168e-05,2]
[406544677,1771929751532,2799.6,7.329e-05,2]
[406544678,1771929751728,2799.6,7.491e-05,2]
[406544679,1771929751923,2799.6,7.653e-05,2]
[406544680,1771929752121,97.66138599,7.814e-05,2]
[406544681,1771929752144,1148.71348521,7.814e-05,2]
[406544682,1771929752166,1148.71348521,7.814e-05,2]
[406544683,1771929752189,404.51164359,7.814e-05,2]
[406544684,1771929752311,744.20184162,7.976e-05,2]
[406544685,1771929752332,1148.71348521,7.976e-05,2]
[406544686,1771929752353,906.68467317,7.976e-05,2]
[406544687,1771929752498,242.02881204,8.138e-05,2]
[406544688,1771929752519,1148.71348521,8.138e-05,2]
[406544689,1771929752540,1148.71348521,8.138e-05,2]
[406544690,1771929752561,260.14421754,8.138e-05,2]
[406544691,1771929752683,888.56926767,8.299e-05,2]
[406544692,1771929752704,1148.71348521,8.299e-05,2]
[406544693,1771929752726,762.31724712,8.299e-05,2]
[406544694,1771929752876,2799.6,8.461e-05,2]
[406544695,1771929753069,2200.41,8.623e-05,2]
[406544696,1771929753091,386.39623809,8.623e-05,2]
[406544697,1771929753116,212.79376191,8.623e-05,2]
[406544698,1771929753287,2799.6,8.784e-05,2]
[406544699,1771929753490,2799.6,8.946e-05,2]
[406544700,1771929753686,2799.6,9.108e-05,2]
[406544701,1771929753885,2799.6,9.269e-05,2]
[406544702,1771929754081,2799.6,9.431e-05,2]
[406544703,1771929754259,2799.6,9.593e-05,2]
[406544704,1771929754460,2799.6,9.754e-05,2]
[406544705,1771929754648,2799.6,9.916e-05,2]
[406544706,1771929754833,1601.21,0.00010078,2]
[406544707,1771929754856,1198.39,0.00010078,2]
[406544708,1771929755028,2799.6,0.00010239,2]
[406544709,1771929778266,557.8906,0.00010288,2]
[406544710,1771929789103,860.09762546,0.00010288,2]
[406544711,1771929796687,169.83667346,0.00010288,2]
[406544712,1771929845479,1000.0,0.00010288,2]
[406544713,1771929901660,1200.0,0.00010387,2]
[406544714,1771929902081,150.0,0.00010387,2]
[406544715,1771929909254,573.39841698,0.00010288,2]
[406544716,1771929930136,430.16376962,0.00010288,2]
[406544720,1771929961666,300.0,0.00010387,2]
[406544721,1771929984592,760.63291448,0.00010288,2]
[406544722,1771929984615,10000.01,0.00010288,2]
[406544723,1771929984865,10000.01,0.00010288,2]
[406544724,1771929984889,10000.01,0.00010288,2]
[406544725,1771929984913,10000.01,0.00010288,2]
[406544726,1771929984936,10000.01,0.00010288,2]
[406544727,1771929984959,10000.01,0.00010288,2]
[406544728,1771929984982,10000.01,0.00010288,2]
[406544729,1771929985004,10000.01,0.00010288,2]
[406544730,1771929985026,5000.01,0.00010288,2]
[406544731,1771929985049,10000.01,0.00010288,2]
[406544732,1771929991178,-5000.01,0.00010288,2]
[406544733,1771930020487,4476.386,0.00010237,2]
[406544734,1771930031218,382.26561132,0.00010188,2]
[406544735,1771930032845,2404.428836,0.00010237,2]
[406544737,1771930082018,150.0,0.00010287,2]
[406544739,1771930151345,254.84374088,0.00010188,2]
[406544740,1771930154732,2323.99349219,0.00010188,2]
[406544741,1771930180032,8.09231961,0.00010027,2]
[406544742,1771930180054,5285.37768039,0.00010027,2]
[406544743,1771930201223,1200.0,0.00010287,2]
[406544744,1771930201251,241.0,0.00010287,2]
[406544748,1771930223486,3273.63231961,0.00010188,2]
[406544749,1771930223509,10000.01,0.00010188,2]
[406544750,1771930223532,10000.01,0.00010188,2]
[406544751,1771930223556,10000.01,0.00010188,2]
[406544752,1771930223579,949.29028039,0.00010188,2]
[406544753,1771930231587,-1295.21988168,0.00010288,2]
[406544754,1771930231609,-891.37718314,0.00010288,2]
[406544755,1771930231621,-12663.92135738,0.00010288,2]
[406544756,1771930231631,-711.05,0.00010288,2]
[406544757,1771930231642,-1286.0085527,0.00010288,2]
[406544758,1771930231652,-48472.65737683,0.00010288,2]
[406544759,1771930231688,-687.16138692,0.00010288,2]
[406544760,1771930231698,-2256.41771873,0.00010288,2]
[406544761,1771930231709,-257.97985603,0.00010288,2]
[406544762,1771930231719,-1407.00725734,0.00010288,2]
[406544763,1771930231729,-21239.20165074,0.00010288,2]
[406544764,1771930231740,-492.21212702,0.00010288,2]
[406544765,1771930231752,-1634.00894998,0.00010288,2]
[406544766,1771930231762,-347.43508066,0.00010288,2]
[406544767,1771930231773,-321.55982235,0.00010288,2]
[406544769,1771930231796,-6779.46985046,0.00010288,2]
[406544791,1771930237774,-449.3404125,0.00010288,2]
[406544792,1771930237786,-550.6595875,0.00010288,2]
[406544793,1771930237797,-3297496.56903356,0.00010288,2]
[406544794,1771930237807,-1000.0,0.00010288,2]
[406544795,1771930237817,-2500.0,0.00010288,2]
[406544796,1771930237827,-250.0,0.00010344,2]
[406544797,1771930237836,-451.73,0.000104,2]
[406544798,1771930237847,-327.101,0.00010423,2]
[406544799,1771930237857,-846.8,0.00010488,2]
[406544800,1771930237867,-10000.0,0.00010488,2]
[406544801,1771930237877,-500.0,0.00010488,2]
[406544802,1771930237887,-183.0566,0.00010488,2]
[406544803,1771930237896,-155.19,0.000105,2]
[406544804,1771930237906,-220.248153,0.00010653,2]
[406544805,1771930237916,-846.8,0.00010762,2]
[406544806,1771930237926,-500.0,0.000108,2]
[406544807,1771930237935,-500.0,0.000108,2]
[406544808,1771930237945,-500.0,0.000108,2]
[406544809,1771930237955,-500.0,0.000108,2]
[406544810,1771930237963,-500.0,0.000108,2]
[406544811,1771930237972,-500.0,0.000108,2]
[406544812,1771930237982,-500.0,0.000108,2]
[406544813,1771930237991,-500.0,0.000108,2]
[406544814,1771930238000,-500.0,0.000108,2]
[406544815,1771930238010,-500.0,0.000108,2]
[406544816,1771930238021,-500.0,0.000108,2]
[406544817,1771930238031,-876.08251248,0.000108,2]
[406544819,1771930238040,-500.0,0.000108,2]
[406544821,1771930238050,-500.0,0.000108,2]
[406544823,1771930238059,-500.0,0.000108,2]
[406544825,1771930238068,-500.0,0.000108,2]
[406544827,1771930238078,-500.0,0.000108,2]
[406544829,1771930238087,-500.0,0.000108,2]
[406544831,1771930238097,-695.91406406,0.000108,2]
[406544833,1771930238107,-1793.07639936,0.00010868,2]
[406544835,1771930238116,-360.0,0.00010868,2]
[406544837,1771930238126,-223.0,0.00010889,2]
[406544839,1771930238135,-4759.0288952,0.000109,2]
[406544841,1771930238144,-271207.05849988,0.00010903,2]
[406544843,1771930238153,-216.0,0.00010923,2]
[406544844,1771930238162,-336.0,0.00010945,2]
[406544845,1771930238173,-1211.0,0.00010952,2]
[406544846,1771930238183,-16914.87,0.00010959,2]
[406544847,1771930238192,-150.0,0.00010959,2]
[406544848,1771930238202,-166.66,0.00010959,2]
[406544849,1771930238212,-1185.85,0.00010959,2]
[406544850,1771930238221,-499.99,0.00010959,2]
[406544851,1771930238231,-999.99,0.00010959,2]
[406544852,1771930238239,-306.28,0.00010959,2]
[406544853,1771930238248,-9999.99,0.00010959,2]
[406544854,1771930238257,-150.99,0.00010959,2]
[406544855,1771930238268,-9999.99,0.00010959,2]
[406544856,1771930238277,-9999.99,0.00010959,2]
[406544857,1771930238287,-9999.99,0.00010959,2]
[406544858,1771930238296,-9999.99,0.00010959,2]
[406544859,1771930238305,-9999.99,0.00010959,2]
[406544860,1771930238315,-14657.05,0.00010959,2]
[406544861,1771930238324,-150.99,0.00010959,2]
[406544862,1771930238339,-299.99,0.00010959,2]
[406544863,1771930238349,-500.0,0.00010959,2]
[406544864,1771930238359,-179.0,0.00010966,2]
[406544865,1771930238369,-506.0,0.00010974,2]
[406544866,1771930238381,-380.0,0.00010988,2]
[406544867,1771930238391,-1804.0,0.00010996,2]
[406544868,1771930238400,-205.0,0.00011004,2]
[406544869,1771930238412,-1432.0,0.00011024,2]
[406544870,1771930238421,-206.0,0.00011026,2]
[406544871,1771930238432,-846.8,0.00011036,2]
[406544872,1771930238441,-174.31,0.00011041,2]
[406544873,1771930238451,-506.0,0.00011046,2]
[406544874,1771930238460,-300.0,0.00011048,2]
[406544875,1771930238470,-506.0,0.00011068,2]
[406544876,1771930238479,-166.66,0.00011068,2]
[406544877,1771930238489,-3838.62,0.00011068,2]
[406544878,1771930238498,-9999.99,0.00011068,2]
[406544879,1771930238507,-49999.99,0.00011068,2]
[406544880,1771930238517,-281.0,0.0001107,2]
[406544881,1771930238527,-1180.0,0.0001109,2]
[406544882,1771930238536,-415.0,0.00011092,2]
[406544883,1771930238546,-4511.31082939,0.00011099,2]
[406544884,1771930238556,-4511.31082936,0.00011099,2]
[406544885,1771930238566,-4730.85500803,0.00011099,2]
[406544886,1771930238576,-4730.85500796,0.00011099,2]
[406544887,1771930238586,-902.02,0.00011105,2]
[406544888,1771930238596,-166.66,0.00011178,2]
[406544889,1771930238606,-150.0,0.00011213,2]
[406544890,1771930238616,-150.0,0.00011214,2]
[406544891,1771930238625,-150.0,0.00011215,2]
[406544892,1771930238634,-150.0,0.00011216,2]
[406544893,1771930238644,-150.0,0.00011217,2]
[406544894,1771930238653,-150.0,0.00011218,2]
[406544895,1771930238663,-150.0,0.00011219,2]
[406544896,1771930238672,-150.0,0.0001122,2]
[406544897,1771930238681,-150.0,0.00011221,2]
[406544898,1771930238691,-150.0,0.00011222,2]
[406544899,1771930238701,-150.0,0.00011223,2]
[406544900,1771930238710,-150.0,0.00011224,2]
[406544901,1771930238719,-206.290511,0.00011225,2]
[406544902,1771930238729,-2377.47,0.00011233,2]
[406544903,1771930238738,-500.0,0.00011233,2]
[406544904,1771930238749,-166.66,0.00011288,2]
[406544905,1771930238758,-255.0,0.00011306,2]
[406544906,1771930238768,-846.8,0.0001131,2]
[406544907,1771930238778,-1680.0,0.00011316,2]
[406544908,1771930238788,-250.0,0.00011317,2]
[406544909,1771930238797,-166.66,0.00011397,2]
[406544910,1771930238807,-193.0,0.00011427,2]
[406544911,1771930238817,-5000.0,0.00011427,2]
[406544912,1771930238826,-5000.0,0.00011427,2]
[406544913,1771930238836,-5000.0,0.00011427,2]
[406544914,1771930238846,-5000.0,0.00011427,2]
[406544915,1771930238857,-1227.65,0.00011503,2]
[406544916,1771930238867,-166.66,0.00011507,2]
[406544917,1771930238876,-500.0,0.00011507,2]
[406544918,1771930238886,-1732.30976653,0.00011532,2]
[406544919,1771930238896,-846.8,0.00011584,2]
[406544920,1771930238906,-174.31,0.00011622,2]
[406544921,1771930238916,-500.0,0.00011781,2]
[406544922,1771930238926,-846.8,0.00011858,2]
[406544923,1771930238935,-4730.85500796,0.00011902,2]
[406544924,1771930238945,-4511.31082936,0.00011902,2]
[406544925,1771930238955,-206.11752096,0.00011922,2]
[406544926,1771930238964,-245.98,0.00012044,2]
[406544927,1771930238973,-500.0,0.00012055,2]
[406544928,1771930238983,-846.8,0.00012132,2]
[406544929,1771930238992,-290.93,0.00012191,2]
[406544930,1771930239003,-174.31,0.00012203,2]
[406544931,1771930239014,-500.0,0.00012329,2]
[406544932,1771930239027,-846.8,0.00012406,2]
[406544933,1771930239038,-433.0,0.00012427,2]
[406544934,1771930239049,-2351.0,0.00012448,2]
[406544935,1771930239059,-500.0,0.00012603,2]
[406544936,1771930239069,-846.8,0.0001268,2]
[406544937,1771930239079,-4730.85500796,0.00012759,2]
[406544938,1771930239088,-4511.31082936,0.00012759,2]
[406544939,1771930239098,-1227.65,0.00012781,2]
[406544940,1771930239108,-174.31,0.00012784,2]
[406544941,1771930239117,-500.0,0.00012877,2]
[406544942,1771930239127,-846.8,0.00012954,2]
[406544943,1771930239136,-217.17,0.00012992,2]
[406544944,1771930239145,-500.0,0.00013073,2]
[406544945,1771930239154,-500.0,0.00013073,2]
[406544946,1771930239163,-500.0,0.00013073,2]
[406544947,1771930239172,-500.0,0.00013073,2]
[406544948,1771930239181,-500.0,0.00013073,2]
[406544949,1771930239190,-500.0,0.00013073,2]
[406544950,1771930239199,-500.0,0.00013073,2]
[406544951,1771930239208,-500.0,0.00013073,2]
[406544952,1771930239218,-500.0,0.00013073,2]
[406544953,1771930239227,-500.0,0.00013073,2]
[406544954,1771930239236,-500.0,0.00013101,2]
[406544955,1771930239245,-500.0,0.00013101,2]
[406544956,1771930239255,-500.0,0.00013101,2]
[406544957,1771930239264,-500.0,0.00013101,2]
[406544958,1771930239275,-500.0,0.00013101,2]
[406544959,1771930239284,-500.0,0.00013101,2]
[406544960,1771930239293,-500.0,0.00013101,2]
[406544961,1771930239302,-500.0,0.00013101,2]
[406544962,1771930239311,-500.0,0.00013101,2]
[406544963,1771930239320,-500.0,0.00013101,2]